bitfinex/quotes_SOLUSD_20241016
["timestamp","ask_amount","ask_price","bid_price","bid_amount"]
[1729088890030,6.4116,155.97,155.92,6.4134]
[1729088890845,6.4107,155.99,155.91,0.6396282]
[1729088891042,6.4107,155.99,155.94,6.4126]
[1729088891556,6.4103,156.0,155.95,6.4119]
[1729088892637,6.4111,155.98,155.93,22.4448]
[1729088893025,6.4106,156.0,155.95,6.4122]
[1729088893424,6.4111,155.98,155.93,22.4447]
[1729088893628,6.4115,155.97,155.93,16.032]
[1729088894150,6.4115,155.97,155.93,22.445]
[1729088894761,23.776884,156.01,155.91,0.6396282]
[1729088895055,39.802084,156.01,155.91,0.6396282]
[1729088895224,6.4117,155.97,155.92,6.4134]
[1729088895425,6.4117,155.97,155.91,0.6396282]
[1729088895628,6.4117,155.97,155.93,6.413]
[1729088896061,6.4123,155.95,155.91,0.6396282]
[1729088896354,23.776884,155.98,155.91,0.6396282]
[1729088896534,6.4134,155.93,155.91,0.6396282]
[1729088896738,23.776884,155.96,155.91,0.6396282]
[1729088896934,6.4132,155.93,155.91,0.6396282]
[1729088897139,16.0293,155.97,155.91,0.6396282]
[1729088897454,6.4135,155.92,155.91,0.6396282]
[1729088899456,30.190384,155.92,155.91,0.6396282]
[1729088900775,6.4135,155.92,155.91,0.6396282]
[1729088901648,22.0537,155.98,155.91,0.6396282]
[1729088901840,6.4123,155.95,155.91,7.0534282]
[1729088902042,6.4128,155.94,155.91,0.6396282]
[1729088902346,6.4133,155.93,155.91,0.6396282]
[1729088902545,22.0537,155.98,155.91,0.6396282]
[1729088902758,6.4135,155.92,155.91,0.6396282]
[1729088903256,6.4123,155.95,155.91,0.6396282]
[1729088903458,6.0254,155.98,155.91,0.6396282]
[1729088903659,6.4128,155.94,155.91,0.6396282]
[1729088904457,6.4134,155.93,155.91,0.6396282]
[1729088904964,6.4128,155.94,155.91,0.6396282]
[1729088905542,6.4135,155.92,155.91,0.6396282]
[1729088905875,6.4128,155.94,155.91,0.6396282]
[1729088906071,39.805984,155.97,155.91,0.6396282]
[1729088906244,6.4125,155.95,155.91,7.0535282]
[1729088906444,6.4122,155.96,155.92,6.4134]
[1729088906647,6.4107,155.99,155.94,6.4123]
[1729088906964,6.4098,156.01,155.97,6.4113]
[1729088907171,6.4098,156.01,155.91,22.86183424]
[1729088907172,6.4099,156.01,155.96,6.4116]
[1729088907472,31.0394,156.07,155.99,6.4105]
[1729088907866,40.0815553,156.07,155.99,6.4105]
[1729088908053,31.0394,156.07,155.99,6.4105]
[1729088908247,16.1215,156.04,155.94,22.4438]
[1729088908447,16.0215,156.04,155.94,22.4438]
[1729088908777,23.776884,156.03,155.94,22.4438]
[1729088909344,6.4107,155.99,155.95,6.4122]
[1729088909953,6.4107,155.99,155.94,22.444]
[1729088910280,6.4107,155.99,155.94,22.4441]
[1729088911564,47.1575,156.07,155.98,6.411]
[1729088911565,6.4094,156.02,155.98,6.411]
[1729088912775,15.0206,156.07,155.96,20.0]
[1729088913084,9.11088039,156.11,155.96,20.0]
[1729088913085,16.0151,156.11,155.98,22.22220604]
[1729088913389,22.324,156.12,156.03,6.4089]
[1729088913580,54.4512,156.12,155.99,16.0263]
[1729088913783,16.016,156.1,155.99,16.0263]
[1729088914149,0.1,156.11,155.99,16.0263]
[1729088914475,6.4092,156.03,155.99,16.0263]
[1729088914875,6.4086,156.05,155.99,22.4368]
[1729088915272,6.4086,156.05,156.0,6.4101]
[1729088915485,6.4078,156.06,156.01,16.024]
[1729088915780,6.4082,156.05,156.01,22.4337]
[1729088915999,6.4086,156.04,155.99,6.4106]
[1729088916507,23.776884,156.03,155.94,16.0308]
[1729088916696,6.4112,155.98,155.93,29.1513]
[1729088917001,16.024,156.02,155.93,29.1513]
[1729088917170,6.4115,155.97,155.93,6.413]
[1729088917367,23.776884,156.01,155.93,6.413]
[1729088917567,6.4111,155.98,155.93,6.413]
[1729088918295,23.776884,156.03,155.91,32.7082282]
[1729088918463,6.41,156.01,155.96,6.4115]
[1729088918868,23.776884,156.03,155.95,16.0302]
[1729088919072,6.4103,156.0,155.95,22.4424]
[1729088919569,6.4103,156.0,155.91,32.7082282]
[1729088919570,23.776884,156.03,155.92,16.0334]
[1729088919787,6.4123,155.95,155.91,7.0535282]
[1729088920093,6.4119,155.96,155.91,7.0535282]
[1729088920272,6.4124,155.95,155.91,7.0535282]
[1729088920473,6.4124,155.95,155.91,0.6396282]
[1729088920769,6.4103,156.0,155.96,6.4117]
[1729088921176,6.4107,155.99,155.95,22.4425]
[1729088921987,23.776884,156.03,155.91,0.6396282]
[1729088922205,6.4111,155.98,155.94,6.4127]
[1729088923273,6.4107,155.99,155.94,6.4127]
[1729088925299,6.4115,155.97,155.92,22.4463]
[1729088925806,6.4119,155.96,155.92,22.4463]
[1729088926219,23.776884,156.01,155.92,22.4463]
[1729088926387,6.4116,155.97,155.92,22.4463]
[1729088926891,23.776884,156.01,155.91,0.6396282]
[1729088927100,6.4134,155.93,155.91,0.6396282]
[1729088927906,6.4135,155.92,155.91,0.6396282]
[1729088929090,30.190384,155.92,155.91,0.6396282]
[1729088929408,50.190384,155.92,155.91,0.6396282]
[1729088930111,54.96691154,155.92,155.91,0.6396282]
[1729088930712,55.06691154,155.92,155.91,0.6396282]
[1729088931126,54.96691154,155.92,155.91,0.6396282]
[1729088931410,50.190384,155.92,155.91,0.6396282]
[1729088931610,50.290384,155.92,155.91,0.6396282]
[1729088931985,32.2298,155.89,155.79,6.4188]
[1729088932186,16.2919,155.89,155.77,38.4524]
[1729088932380,6.4181,155.81,155.77,28.5192]
[1729088932603,6.4177,155.82,155.77,28.5192]
[1729088932980,6.4177,155.82,155.78,6.4192]
[1729088933788,23.776884,155.86,155.77,22.0996]
[1729088933991,6.4174,155.83,155.78,6.4192]
[1729088936298,23.776884,155.86,155.78,6.4192]
[1729088936615,6.4185,155.8,155.77,16.0488]
[1729088936802,6.4181,155.81,155.77,16.0488]
[1729088937890,6.4181,155.81,155.76,7.0596282]
[1729088938316,6.4185,155.8,155.76,0.6396282]
[1729088938612,16.0415,155.85,155.76,0.6396282]
[1729088938822,23.776884,155.86,155.77,16.0487]
[1729088939020,6.4169,155.84,155.79,6.4188]
[1729088939194,23.776884,155.86,155.77,16.0487]
[1729088939392,6.4181,155.81,155.77,22.4683]
[1729088939596,6.4176,155.82,155.77,22.4683]
[1729088940194,6.4181,155.81,155.77,22.4683]
[1729088940610,6.4181,155.81,155.77,16.0487]
[1729088940811,6.4197,155.77,155.76,0.6396282]
[1729088941026,6.4193,155.78,155.76,0.6396282]
[1729088942395,6.4189,155.79,155.76,0.6396282]
[1729088944725,23.776884,155.8,155.76,0.6396282]
[1729088945099,6.4197,155.77,155.76,0.6396282]
[1729088946691,50.196584,155.77,155.76,0.6396282]
[1729088947094,50.196584,155.77,155.76,2.82e-05]
[1729088947301,50.196584,155.77,155.65,12.8166]
[1729088947302,6.4227,155.7,155.65,12.8166]
[1729088947518,6.4237,155.68,155.65,6.392]
[1729088947722,6.4236,155.68,155.62,31.547]
[1729088947927,6.4236,155.68,155.63,6.4253]
[1729088948100,6.4236,155.68,155.62,16.0644]
[1729088948302,6.4234,155.68,155.63,6.4254]
[1729088948521,6.4238,155.67,155.62,22.4902]
[1729088948697,23.776884,155.72,155.62,16.0644]
[1729088948893,6.4239,155.67,155.62,22.4899]
[1729088949321,6.4243,155.66,155.62,16.0644]
[1729088949494,23.776884,155.7,155.6,0.6396282]
[1729088949700,6.4253,155.64,155.6,0.6396282]
[1729088950321,6.4255,155.63,155.6,0.6396282]
[1729088950631,30.203184,155.61,155.6,0.6396282]
[1729088951508,50.203184,155.61,155.6,0.6396282]
[1729088952232,6.4287,155.56,155.5,16.0762]
[1729088952438,23.776884,155.55,155.5,16.0762]
[1729088952907,20.0,155.57,155.51,6.4301]
[1729088953243,26.428,155.57,155.51,6.4304]
[1729088953533,20.0,155.59,155.45,20.0]
[1729088953730,6.4284,155.56,155.5,6.4308]
[1729088954235,6.4284,155.56,155.44,39.1387282]
[1729088954236,23.776884,155.56,155.48,16.0783]
[1729088954433,0.1,155.58,155.48,22.5096]
[1729088954434,23.776884,155.54,155.48,22.5096]
[1729088954745,30.206884,155.52,155.46,6.4325]
[1729088955044,23.776884,155.53,155.45,16.0822]
[1729088955413,50.205184,155.56,155.5,6.4306]
[1729088956038,20.0,155.56,155.45,20.0]
[1729088956208,6.4289,155.55,155.49,6.431]
[1729088956415,26.4287,155.56,155.49,6.4311]
[1729088956733,26.4283,155.56,155.5,6.4308]
[1729088957034,26.4283,155.56,155.51,6.4301]
[1729088957035,20.0,155.56,155.51,6.4301]
[1729088957424,20.0,155.56,155.52,6.4299]
[1729088957635,20.0,155.56,155.46,16.0804]
[1729088957636,23.876884,155.55,155.46,16.0804]
[1729088957819,23.776884,155.51,155.46,22.5128]
[1729088958029,23.776884,155.52,155.46,6.4323]
[1729088958212,20.0,155.51,155.46,6.4323]
[1729088958412,20.0,155.51,155.45,22.5147]
[1729088958935,6.4309,155.5,155.45,16.0819]
[1729088959139,6.4309,155.5,155.45,22.5147]
[1729088959344,30.208184,155.49,155.44,0.6396282]
[1729088959549,23.776884,155.47,155.44,0.6396282]
[1729088960617,20.0,155.48,155.44,0.6396282]
[1729088960845,20.0,155.49,155.44,0.6396282]
[1729088961145,23.776884,155.48,155.45,6.4327]
[1729088961332,23.776884,155.48,155.44,7.0729282]
[1729088961844,20.0,155.49,155.45,6.4328]
[1729088962135,26.431,155.5,155.45,6.4328]
[1729088962329,23.776884,155.49,155.45,6.4328]
[1729088962510,30.208084,155.49,155.44,23.1554282]
[1729088962713,20.0,155.5,155.44,16.7221282]
[1729088962935,43.776884,155.51,155.44,16.7221282]
[1729088963136,20.0,155.51,155.49,6.4312]
[1729088963326,20.0,155.51,155.47,6.432]
[1729088963639,20.0,155.51,155.46,16.0804]
[1729088963640,20.0,155.53,155.46,16.0804]
[1729088963839,6.4292,155.54,155.49,6.4308]
[1729088964022,6.4287,155.56,155.5,16.0762]
[1729088964231,6.4288,155.55,155.5,16.0762]
[1729088964436,6.4288,155.55,155.5,22.507]
[1729088964736,6.4292,155.54,155.49,6.4311]
[1729088965313,20.1,155.56,155.47,16.0802]
[1729088965628,6.4305,155.51,155.47,16.0802]
[1729088965825,6.4301,155.52,155.47,22.5121]
[1729088966129,23.776884,155.51,155.48,6.4315]
[1729088966341,23.776884,155.51,155.47,16.0802]
[1729088966857,23.776884,155.52,155.48,6.4316]
[1729088967139,6.4292,155.54,155.5,6.4307]
[1729088967343,20.0,155.53,155.47,16.0802]
[1729088967742,20.0,155.53,155.49,6.431]
[1729088967927,6.4301,155.52,155.47,16.0802]
[1729088968251,6.4304,155.52,155.47,22.512]
[1729088968747,23.776884,155.51,155.47,22.512]
[1729088969645,23.776884,155.51,155.48,6.4316]
[1729088971019,6.4289,155.55,155.5,16.0769]
[1729088971220,26.4284,155.56,155.51,6.4304]
[1729088971527,20.0,155.56,155.53,6.4292]
[1729088971741,6.3845,155.59,155.52,16.0745]
[1729088971922,6.4279,155.57,155.52,22.5044]
[1729088972424,20.0,155.56,155.52,22.5044]
[1729088974420,20.0,155.56,155.52,16.0745]
[1729088974721,20.0,155.56,155.54,6.4291]
[1729088975148,23.776884,155.58,155.54,6.4291]
[1729088975441,23.776884,155.58,155.52,16.0745]
[1729088975442,30.204484,155.58,155.52,16.0745]
[1729088975634,30.204484,155.58,155.53,6.4295]
[1729088976549,23.776884,155.58,155.52,16.0745]
[1729088976766,23.776884,155.58,155.54,6.4288]
[1729088978043,23.776884,155.58,155.52,16.0745]
[1729088978228,23.776884,155.58,155.49,38.339]
[1729088978435,23.776884,155.58,155.49,22.2615]
[1729088978947,16.4304,155.61,155.57,6.4279]
[1729088978948,20.0,155.6,155.57,6.4279]
[1729088979250,6.4259,155.62,155.56,16.0708]
[1729088979429,31.5752,155.65,155.51,32.1511]
[1729088979430,15.5131,155.65,155.51,32.1511]
[1729088979632,6.4254,155.64,155.59,6.4268]
[1729088979825,6.4255,155.63,155.58,22.4957]
[1729088980031,15.5131,155.65,155.58,22.4957]
[1729088980239,6.4259,155.62,155.58,22.4957]
[1729088981436,6.4251,155.64,155.59,6.4267]
[1729088981664,6.6159455,155.68,155.6,16.0662]
[1729088981951,6.4227,155.7,155.65,6.4243]
[1729088982154,6.61654535,155.68,155.64,16.0622]
[1729088982456,6.4244,155.66,155.61,22.4915]
[1729088982750,6.4246,155.65,155.61,22.4915]
[1729088982962,6.4246,155.65,155.61,16.0653]
[1729088983128,6.4252,155.64,155.58,16.0686]
[1729088983329,23.776884,155.69,155.58,16.0686]
[1729088983636,43.776884,155.66,155.58,16.0686]
[1729088983952,43.776884,155.66,155.59,6.4269]
[1729088984452,20.0,155.64,155.6,6.4267]
[1729088984830,26.4252,155.64,155.59,6.427]
[1729088985051,20.0,155.65,155.58,16.0686]
[1729088985239,6.4255,155.63,155.58,22.496]
[1729088985445,20.0,155.65,155.57,21.4687]
[1729088985653,26.4247,155.65,155.61,6.4262]
[1729088985852,20.0,155.65,155.61,6.4262]
[1729088987127,20.0,155.65,155.57,21.4687]
[1729088987357,6.4255,155.63,155.59,6.4269]
[1729088988157,6.425,155.64,155.6,6.4267]
[1729088988468,23.776884,155.67,155.57,37.538]
[1729088988660,6.4258,155.63,155.59,6.427]
[1729088989030,23.776884,155.67,155.59,6.427]
[1729088989236,6.4252,155.64,155.59,6.427]
[1729088989468,16.061,155.66,155.57,28.9106]
[1729088989763,23.776884,155.67,155.55,32.1438]
[1729088989764,6.4268,155.6,155.55,6.4284]
[1729088989962,6.4272,155.59,155.55,6.4284]
[1729088990137,6.4268,155.6,155.56,6.4283]
[1729088991456,6.4264,155.61,155.56,6.4283]
[1729088991638,6.4275,155.59,155.54,22.5012]
[1729088991841,6.428,155.57,155.53,12.5425]
[1729088992157,50.133184,155.63,155.5,16.0763]
[1729088992158,6.4288,155.55,155.5,16.0763]
[1729088992554,6.4284,155.56,155.51,6.4303]
[1729088992748,16.0672,155.6,155.5,22.5067]
[1729088992749,6.4288,155.55,155.5,22.5067]
[1729088993065,6.4292,155.54,155.5,22.5067]
[1729088993437,43.776884,155.59,155.5,22.5067]
[1729088993638,6.4289,155.55,155.5,22.5067]
[1729088994050,6.4293,155.54,155.5,22.5067]
[1729088994238,6.4298,155.53,155.48,6.4315]
[1729088995266,43.776884,155.57,155.45,27.8285]
[1729088995267,59.602084,155.57,155.45,27.8285]
[1729088995568,6.4312,155.49,155.45,6.2341]
[1729088995765,6.4312,155.49,155.44,16.7224282]
[1729088995956,23.776884,155.52,155.44,16.7224282]
[1729088996269,6.4317,155.48,155.44,23.1554282]
[1729088996442,6.4313,155.49,155.44,23.1554282]
[1729088997064,6.4317,155.48,155.44,23.1554282]
[1729088997284,6.4321,155.47,155.44,0.6396282]
[1729088997561,6.4317,155.48,155.44,0.6396282]
[1729088997872,43.776884,155.51,155.44,0.6396282]
[1729088997873,6.4322,155.47,155.44,0.6396282]
[1729088998167,20.1,155.53,155.44,0.6396282]
[1729088998365,6.4327,155.46,155.44,0.51309723]
[1729088999749,30.209784,155.45,155.44,0.51309723]
[1729088999947,50.209784,155.45,155.44,0.51309723]
[1729089001437,26.4329,155.45,155.44,0.51309723]
[1729089001642,50.209784,155.45,155.44,0.51309723]
[1729089002764,6.4352,155.4,155.35,6.4369]
[1729089003147,59.960184,155.45,155.35,6.4369]
[1729089003360,23.776884,155.44,155.38,16.0894]
[1729089003563,20.0,155.45,155.41,6.4345]
[1729089003771,6.4324,155.47,155.42,6.4339]
[1729089003977,30.208584,155.48,155.43,6.4337]
[1729089004267,8.34429376,155.51,155.44,16.0831]
[1729089004268,6.5855,155.51,155.44,16.0831]
[1729089004470,6.5855,155.51,155.44,22.5163]
[1729089004471,6.4313,155.49,155.44,22.5163]
[1729089004671,6.5855,155.51,155.4,16.5575]
[1729089004969,6.4323,155.47,155.41,22.5202]
[1729089005182,6.4323,155.47,155.42,6.434]
[1729089006060,30.208084,155.5,155.45,6.4329]
[1729089006243,23.776884,155.48,155.43,16.0834]
[1729089006451,16.0752,155.52,155.4,16.5575]
[1729089006452,21.847104,155.54,155.4,16.5575]
[1729089006650,6.43,155.52,155.47,22.5112]
[1729089006869,15.2214,155.54,155.41,43.776884]
[1729089007072,21.6509,155.54,155.48,6.4316]
[1729089007272,15.2214,155.54,155.43,32.1681]
[1729089007575,15.2214,155.54,155.46,16.0806]
[1729089007757,6.43,155.53,155.48,6.4313]
[1729089008375,6.4758,155.55,155.48,6.4313]
[1729089008376,6.4291,155.55,155.49,6.4309]
[1729089008555,15.22185374,155.57,155.48,16.0785]
[1729089008556,6.4293,155.54,155.48,16.0785]
[1729089008870,15.5,155.58,155.5,6.4308]
[1729089009072,6.4289,155.55,155.5,6.4307]
[1729089009254,21.9279,155.58,155.53,6.4296]
[1729089009457,6.4285,155.56,155.51,6.4303]
[1729089009973,6.4274,155.59,155.54,6.4291]
[1729089010276,16.4001,155.62,155.53,16.0739]
[1729089010479,6.4281,155.57,155.53,16.0739]
[1729089010774,6.4274,155.59,155.53,22.5034]
[1729089011070,6.4279,155.58,155.53,22.5035]
[1729089012070,6.4279,155.58,155.54,6.4291]
[1729089012368,20.0,155.61,155.53,16.0739]
[1729089012577,26.4266,155.61,155.55,6.4284]
[1729089013072,6.4262,155.62,155.57,6.4278]
[1729089013452,15.196,155.66,155.58,16.0685]
[1729089013654,15.196,155.7,155.57,16.0825]
[1729089013868,6.4239,155.67,155.62,6.4258]
[1729089014081,21.90328714,155.7,155.57,16.0825]
[1729089014082,6.4234,155.68,155.63,6.4251]
[1729089014379,6.4229,155.7,155.65,6.4244]
[1729089014581,47.307,155.74,155.66,6.4242]
[1729089014876,16.0586,155.74,155.67,6.4237]
[1729089015080,16.0586,155.74,155.68,6.4232]
[1729089015081,6.4212,155.74,155.68,6.4232]
[1729089015375,6.4723,155.76,155.68,6.4232]
[1729089015673,6.4215,155.73,155.68,6.4232]
[1729089016182,21.90470224,155.78,155.67,0.1]
[1729089016183,6.70870224,155.78,155.67,0.1]
[1729089016349,6.4854,155.82,155.69,0.1]
[1729089016685,13.76242932,155.83,155.78,6.4192]
[1729089016856,7.34512932,155.83,155.78,6.4192]
[1729089017181,0.6396282,155.83,155.78,6.4192]
[1729089017358,0.6396282,155.83,155.8,6.4184]
[1729089017556,0.6396282,155.83,155.78,16.0479]
[1729089017857,0.6396282,155.83,155.73,23.776884]
[1729089017858,6.419,155.79,155.74,16.0517]
[1729089018057,6.4185,155.8,155.74,22.4726]
[1729089018859,6.4196,155.78,155.71,6.4221]
[1729089019061,6.4202,155.76,155.71,6.4221]
[1729089019758,6.4206,155.75,155.69,22.48]
[1729089020173,20.2,155.81,155.66,6.2022]
[1729089020354,6.4209,155.74,155.69,6.4229]
[1729089020867,6.4209,155.74,155.66,6.2022]
[1729089020868,20.0,155.77,155.67,0.1]
[1729089021082,6.4194,155.78,155.72,6.4217]
[1729089021257,6.4209,155.74,155.69,6.4229]
[1729089021592,6.4197,155.77,155.67,20.0]
[1729089021751,20.0,155.77,155.7,16.0564]
[1729089022171,6.4189,155.79,155.73,6.4211]
[1729089022361,26.4193,155.78,155.73,6.4211]
[1729089022559,20.0,155.78,155.67,20.0]
[1729089022758,20.0,155.78,155.7,6.4224]
[1729089022759,6.4205,155.76,155.7,6.4224]
[1729089022963,6.4194,155.78,155.73,6.4213]
[1729089023176,6.4186,155.8,155.71,16.0545]
[1729089023379,0.6396282,155.83,155.79,6.4188]
[1729089023592,7.0570282,155.83,155.77,16.0487]
[1729089024456,6.4176,155.82,155.77,22.4682]
[1729089024652,6.4188,155.8,155.74,22.4731]
[1729089024861,6.4188,155.8,155.68,35.66221422]
[1729089024862,6.4197,155.77,155.66,6.4022]
[1729089025060,6.4197,155.77,155.71,6.4219]
[1729089025372,43.776884,155.8,155.7,16.056]
[1729089025566,16.0487,155.78,155.66,22.2625]
[1729089025767,6.4226,155.7,155.66,16.0603]
[1729089025976,50.024984,155.77,155.63,6.4253]
[1729089026161,6.4234,155.68,155.63,6.4253]
[1729089026466,26.1481,155.77,155.63,0.1]
[1729089026660,0.1,155.8,155.63,0.1]
[1729089026661,6.421,155.74,155.69,6.423]
[1729089027364,6.421,155.74,155.67,16.0587]
[1729089027689,6.4215,155.73,155.68,6.4233]
[1729089027984,6.4215,155.73,155.67,16.0587]
[1729089028279,6.4215,155.73,155.67,22.4824]
[1729089028980,6.4205,155.76,155.71,6.4221]
[1729089029169,6.4205,155.75,155.7,6.4225]
[1729089029362,6.42,155.77,155.71,6.422]
[1729089030060,6.4203,155.76,155.71,6.422]
[1729089030369,6.4222,155.71,155.66,6.4242]
[1729089030687,16.0501,155.77,155.65,22.4852]
[1729089030688,6.4227,155.7,155.65,22.4852]
[1729089031264,43.776884,155.76,155.68,16.0584]
[1729089031881,16.0464,155.8,155.66,0.1]
[1729089032080,6.4201,155.76,155.71,6.4217]
[1729089032382,6.421,155.74,155.7,16.0556]
[1729089032583,45.12381024,155.82,155.68,6.4233]
[1729089032584,6.4213,155.73,155.68,6.4233]
[1729089032960,16.049,155.78,155.67,16.0593]
[1729089033272,6.4219,155.72,155.67,22.4829]
[1729089033577,16.049,155.78,155.64,22.4874]
[1729089033578,6.423,155.7,155.64,22.4874]
[1729089033988,6.423,155.7,155.61,22.6098]
[1729089033989,43.776884,155.73,155.61,22.622]
[1729089034179,6.4251,155.64,155.57,22.5288]
[1729089034357,6.4251,155.64,155.6,6.4267]
[1729089035180,6.4251,155.64,155.57,22.5288]
[1729089035181,6.4233,155.69,155.64,6.4249]
[1729089035481,6.4235,155.68,155.63,6.4254]
[1729089035874,20.0,155.71,155.62,16.0638]
[1729089036071,6.4233,155.69,155.64,6.4248]
[1729089037083,6.4226,155.7,155.65,6.4243]
[1729089037791,20.0,155.71,155.65,6.4243]
[1729089037792,6.423,155.69,155.65,6.4243]
[1729089038083,20.0,155.71,155.66,6.4242]
[1729089038084,6.4228,155.7,155.66,6.4242]
[1729089038287,6.33,155.72,155.66,6.4242]
[1729089038602,15.8473,155.75,155.67,16.0592]
[1729089038760,6.1136,155.77,155.67,16.0592]
[1729089038761,6.4214,155.73,155.69,6.4229]
[1729089038967,6.1136,155.77,155.67,16.0592]
[1729089038968,6.4218,155.72,155.68,6.4233]
[1729089039270,6.4229,155.7,155.65,6.4243]
[1729089039573,6.4229,155.7,155.66,6.4241]
[1729089039769,6.4229,155.7,155.64,16.0624]
[1729089039970,6.4229,155.7,155.6,32.1325]
[1729089039971,6.4213,155.74,155.68,6.4233]
[1729089040167,16.0513,155.76,155.66,16.0598]
[1729089040383,16.0513,155.76,155.62,0.1]
[1729089040384,6.4208,155.75,155.7,6.4225]
[1729089040777,6.4201,155.76,155.71,6.4218]
[1729089040977,6.4206,155.75,155.71,6.4218]
[1729089041188,6.4206,155.75,155.7,22.4783]
[1729089041571,6.4215,155.73,155.68,6.4231]
[1729089042300,31.8578,155.79,155.66,6.4238]
[1729089042301,20.0,155.75,155.66,6.4238]
[1729089042475,43.776884,155.75,155.64,22.4872]
[1729089042670,43.776884,155.75,155.65,6.4245]
[1729089042671,6.4226,155.7,155.65,6.4245]
[1729089042876,6.422,155.72,155.67,6.4235]
[1729089043079,43.776884,155.75,155.68,6.4231]
[1729089043376,43.776884,155.75,155.68,16.0578]
[1729089043585,6.4218,155.72,155.65,16.0613]
[1729089043770,6.4216,155.73,155.68,6.4232]
[1729089044092,6.4216,155.73,155.64,32.1248]
[1729089044093,6.4229,155.7,155.65,6.4244]
[1729089044670,6.4229,155.7,155.66,6.4241]
[1729089044882,6.4222,155.71,155.66,6.4241]
[1729089045170,6.4227,155.7,155.66,6.4241]
[1729089045396,6.4221,155.72,155.67,6.4238]
[1729089045695,6.4222,155.71,155.66,6.4241]
[1729089046770,6.4226,155.7,155.66,6.4241]
[1729089047273,6.4222,155.71,155.66,6.4241]
[1729089047786,6.4215,155.73,155.69,6.4226]
[1729089048096,6.4215,155.73,155.68,22.4809]
[1729089048689,15.8103,155.79,155.65,20.0]
[1729089048690,6.4201,155.76,155.72,6.4217]
[1729089048988,15.8103,155.79,155.74,6.4208]
[1729089048989,22.2293,155.79,155.74,6.4208]
[1729089049171,22.2293,155.79,155.75,6.4204]
[1729089049172,6.419,155.79,155.75,6.4204]
[1729089049496,6.4193,155.78,155.73,6.4212]
[1729089049997,6.4198,155.77,155.73,6.4212]
[1729089050198,6.2651,155.81,155.7,6.4224]
[1729089050199,6.4209,155.74,155.7,6.4224]
[1729089050392,6.4209,155.74,155.68,16.0576]
[1729089050771,6.4216,155.73,155.68,22.481]
[1729089050976,0.1,155.79,155.65,16.061]
[1729089051181,6.4229,155.7,155.65,22.4855]
[1729089051477,6.4222,155.71,155.66,6.4241]
[1729089051785,6.4226,155.7,155.66,6.4241]
[1729089051975,6.4218,155.72,155.68,6.4233]
[1729089053287,23.776884,155.79,155.69,16.0569]
[1729089053593,6.4204,155.76,155.71,6.4221]
[1729089053893,23.776884,155.77,155.71,6.4221]
[1729089054090,39.826184,155.77,155.69,16.0569]
[1729089054390,6.4215,155.73,155.69,22.4798]
[1729089055298,20.0,155.79,155.66,0.1]
[1729089055470,6.4197,155.77,155.72,6.4214]
[1729089055670,6.4202,155.76,155.72,6.4214]
[1729089057000,6.4205,155.75,155.71,22.4769]
[1729089058192,6.4202,155.76,155.71,22.4769]
[1729089058909,6.4202,155.76,155.71,16.0548]
[1729089059079,6.4185,155.8,155.75,6.4201]
[1729089059278,16.6829282,155.83,155.75,6.4201]
[1729089059482,6.4185,155.8,155.75,6.4201]
[1729089059698,6.4185,155.8,155.76,6.42]
[1729089061604,6.4179,155.82,155.78,6.4193]
[1729089062181,6.4184,155.8,155.75,16.0509]
[1729089062399,6.4196,155.78,155.73,6.4212]
[1729089062700,6.4196,155.78,155.74,6.4209]